Cogmind - Beta 11.1 @@@ ROGUE MODE // 2022.09.08 @ 15:33:16 Player: HeartGrenade Result: Destroyed by as-55465 with Assembled Maul Performance ------------- Evolutions (0) 0 Regions Visited (4) 800 Robots Destroyed (13) 65 Value Destroyed (261) 261 Prototype IDs (26) 520 Alien Tech Used (0) 0 Bonus (441) 441 TOTAL SCORE: 2087 Bonus ------- Follower Combat Kills 141 Aligned with FarCom 300 Cogmind --------- Core Integrity 0/250 Matter 300/300 Energy 250/250 System Corruption 2% Temperature Cool (42) Movement Treading (320) Ox2 Location -9/Mines Parts ------- > --- POWER (1) -------- Ion Engine > --- PROPULSION (2) --- Light Treads > --- UTILITY (2) ------ High-capacity Storage Unit > --- WEAPON (2) ------- Light Assault Rifle > --- INVENTORY (20) --- Ion Engine Light Treads Flight Unit Flight Unit Flight Unit Flight Unit Flight Unit Flight Unit Improved Heat Sink Propulsion Shielding Light Armor Plating Thief Drone Bay (3/3) Medium Laser Guided Plasma Cannon Mining Laser Peak State ------------ > --- POWER ------------ Ion Engine > --- PROPULSION ------- Light Treads Light Treads > --- UTILITY ---------- High-capacity Storage Unit Thief Drone Bay > --- WEAPON ----------- Medium Laser Medium Laser > --- INVENTORY -------- Ion Engine Light Treads Flight Unit Flight Unit Flight Unit Flight Unit Improved Heat Sink Propulsion Shielding Propulsion Shielding Light Armor Plating Medium Laser Guided Plasma Cannon Light Assault Rifle Mining Laser [Rating: 15] Favorites ----------- Power Ion Engine Engine Ion Engine Propulsion Light Treads Treads Light Treads Utility High-capacity Storage Unit Device Thief Drone Bay Storage High-capacity Storage Unit Protection Propulsion Shielding Weapon Medium Laser Energy Gun Medium Laser Ballistic Gun Light Assault Rifle Build | -11 -10 -10 -10 -9 ------- Run | Scr Mat Min Exi Min Slots Evolved . | . . . . . Power . | . . . . . Propulsion . | . . . . . Utility . | . . . . . Weapon . | . . . . . Parts Attached 11 | 3 5 1 . 2 Power 1 | . 1 . . . Engine 1 | . 1 . . . Core . | . . . . . Reactor . | . . . . . Propulsion 2 | 2 . . . . Treads 2 | 2 . . . . Leg . | . . . . . Wheel . | . . . . . Hover . | . . . . . Flight . | . . . . . Utility 5 | . 3 1 . 1 Device 1 | . . 1 . . Storage 2 | . 2 . . . Processor . | . . . . . Hackware . | . . . . . Protection 2 | . 1 . . 1 Artifact . | . . . . . Weapon 3 | 1 1 . . 1 Energy Gun 2 | 1 1 . . . Energy Cannon . | . . . . . Ballistic Gun 1 | . . . . 1 Ballistic Cannon . | . . . . . Launcher . | . . . . . Special Weapon . | . . . . . Impact Weapon . | . . . . . Slashing Weapon . | . . . . . Piercing Weapon . | . . . . . Special Melee Weapon . | . . . . . Unidentified Prototypes 1 | . . 1 . . Parts Lost 4 | . . . . 4 Power . | . . . . . Propulsion 1 | . . . . 1 Utility 1 | . . . . 1 Weapon 2 | . . . . 2 Highest Loss Streak 4 | . . . . 4 To Critical Strikes . | . . . . . Average Slot Usage (%) 94 | . 80 99 100 98 Engine 13 | . 11 14 14 14 Treads 27 | . 28 28 28 27 Device 5 | . . 1 14 9 Storage 13 | . 12 14 14 14 Protection 5 | . . 12 . 3 Energy Gun 27 | . 26 28 28 26 Naked Turns . | . . . . . Heaviest Build 53 | 2 50 53 53 53 Greatest Support 40 | 20 40 40 40 40 Greatest Overweight (x) 2 | . 1 1 1 2 Average Overweight (x) . | . . 1 1 1 Largest Inventory Capacity 20 | 5 20 20 20 20 Average Capacity 18 | 5 13 20 20 20 Most Carried 16 | 3 11 13 14 16 Average Carried 11 | 1 7 11 13 15 Final Capacity 20 | 5 20 20 20 20 Final Carried 15 | 3 10 13 14 15 Class Distribution -------------------- 100% | Mutant Dominant Class ---------------- Mutant | -10/Materials Mutant | -10/Mines Mutant | -10/Exiles Mutant | -9/Mines Resources | -11 -10 -10 -10 -9 ----------- Run | Scr Mat Min Exi Min Matter Collected 300 | 198 72 10 . 20 Remotely . | . . . . . Salvage Created 441 | . 263 127 . 51 Parts 24 | . 17 7 . . Haulers Intercepted 1 | . 1 . . . Recyclers Shooed 3 | . 2 1 . . Parts Field Recycled . | . . . . . Retrieved Matter . | . . . . . Parts Self-Destructed . | . . . . . Prevented . | . . . . . Kills | -11 -10 -10 -10 -9 ------- Run | Scr Mat Min Exi Min Combat Hostiles Destroyed 15 | . 9 2 . 4 Guns 15 | . 9 2 . 4 Classes Destroyed 5 | . 3 1 . 1 Hauler 1 | . 1 . . . Recycler 1 | . . 1 . . Swarmer 6 | . 6 . . . Grunt 5 | . 3 2 . . Assembled 4 | . . . . 4 Best Kill Streak 3 | . 3 1 . 3 Combat Bots Only 3 | . 3 1 . 3 Max Kills in Single Turn 2 | . 2 1 . 1 Gunslinging 1 | . 1 . . . Exploded . | . . . . . Melee . | . . . . . Uniques/NPCs Destroyed . | . . . . . Combat | -11 -10 -10 -10 -9 -------- Run | Scr Mat Min Exi Min Damage Taken 899 | . 178 57 . 664 Core 271 | . 28 23 . 220 Absorbed by Shields . | . . . . . Redirected to Shielding 60 | . 3 6 . 51 Core Remaining (%) 100 | 100 . . . . Volleys Fired 39 | . 17 10 . 12 Largest 2 | . 2 2 . 2 Hottest 100 | . 100 100 . 100 Shots Fired 77 | . 34 20 . 23 Gun 77 | . 34 20 . 23 Cannon . | . . . . . Launcher . | . . . . . Special . | . . . . . Kinetic 3 | . . . . 3 Thermal 74 | . 34 20 . 20 Explosive . | . . . . . Electromagnetic . | . . . . . Robot Hit Streak 11 | . 11 10 . 5 Robot Miss Streak 2 | . 2 1 . 2 Penetration Max . | . . . . . Secondary Targets 2 | . 1 . . 1 Max Gunslinging Chain 1 | . 1 . . 1 Shots Hit Robots 56 | . 25 15 . 16 Core Hits 29 | . 15 6 . 8 Critical Kills . | . . . . . Critical Parts Destroyed . | . . . . . Critical Strikes 5 | . 3 2 . . Burn 5 | . 3 2 . . Melee Attacks . | . . . . . Impact . | . . . . . Slashing . | . . . . . Piercing . | . . . . . Sneak Attacks . | . . . . . Combat Hostiles . | . . . . . Follow-up Attacks . | . . . . . Damage Inflicted 741 | . 330 211 . 200 Guns 735 | . 330 211 . 194 Cannons . | . . . . . Explosions . | . . . . . Melee . | . . . . . Ramming 6 | . . . . 6 Kinetic 16 | . . . . 16 Thermal 719 | . 330 211 . 178 Explosive . | . . . . . Electromagnetic . | . . . . . Impact . | . . . . . Slashing . | . . . . . Piercing . | . . . . . Highest Corruption 2 | . . . . 2 Average Corruption 2 | . . . . 2 Corruption Purged . | . . . . . Corruption Blocked . | . . . . . Overload Shots . | . . . . . Overflow Damage . | . . . . . Projectiles . | . . . . . Explosions . | . . . . . Melee . | . . . . . Knockbacks . | . . . . . Impact . | . . . . . Kinetic . | . . . . . Secondary . | . . . . . Self-Inflicted Damage . | . . . . . Shots . | . . . . . Rammed 2 | . . . . 2 Targets Rammed 2 | . . . . 2 Kicked . | . . . . . Crushed . | . . . . . Highest Temperature 239 | . 156 135 . 239 Average Temperature 69 | . 51 44 . 116 Received Heat Transfer 239 | . 69 30 . 140 Siege Activations . | . . . . . Robots Corrupted . | . . . . . Combat Hostiles . | . . . . . Parts Fried . | . . . . . Impact Corruptions . | . . . . . Robots Melted . | . . . . . Combat Hostiles . | . . . . . Parts Melted 3 | . 2 1 . . Heat Transferred 2405 | . 1147 740 . 518 Parts Sabotaged . | . . . . . Parts Stolen . | . . . . . Parts Stripped . | . . . . . Power Chain Reactions . | . . . . . Missiles Intercepted . | . . . . . Alert | -11 -10 -10 -10 -9 ------- Run | Scr Mat Min Exi Min Peak Influence 288 | . 288 219 . 89 Initial 36 | . . 36 . . Average 109 | . 177 77 . 71 Maximum Alert Level 1 | . 1 1 . . Low Security (%) 80 | 100 44 98 . 100 Level 1 19 | . 55 1 . . Level 2 . | . . . . . Level 3 . | . . . . . Level 4 . | . . . . . Level 5 . | . . . . . High Security . | . . . . . Max Security . | . . . . . Squads Dispatched 3 | . 2 1 . . Investigation . | . . . . . Extermination . | . . . . . Reinforcement 2 | . 2 . . . Assault 1 | . . 1 . . Garrison . | . . . . . Intercept . | . . . . . Searches Triggered . | . . . . . Construction Impeded . | . . . . . Haulers Reinforced . | . . . . . Active Scanning Responses . | . . . . . Cargo Convoy Interrupts . | . . . . . Stealth | -11 -10 -10 -10 -9 --------- Run | Scr Mat Min Exi Min Distress Signals 1 | . 1 . . . Communications Jammed . | . . . . . Distress Signals . | . . . . . Times Spotted 37 | . 15 8 . 14 Peak Tracking Total 9 | . 4 4 . 9 Tactical Retreats 3 | . . 1 . 2 Traps | -11 -10 -10 -10 -9 ------- Run | Scr Mat Min Exi Min Traps Triggered . | . . . . . Indirectly . | . . . . . Trap Hack Attempts . | . . . . . Triggered . | . . . . . Disarmed . | . . . . . Reprogrammed . | . . . . . Reused . | . . . . . Traps Extracted . | . . . . . Installed . | . . . . . Triggered . | . . . . . Machines | -11 -10 -10 -10 -9 ---------- Run | Scr Mat Min Exi Min Machines Disabled 1 | . . 1 . . Max in Single Turn 1 | . . 1 . . Machines Sabotaged . | . . . . . Garrisons Compromised . | . . . . . Overloaded Fab Kills . | . . . . . Hacking | -11 -10 -10 -10 -9 --------- Run | Scr Mat Min Exi Min Machines Accessed 6 | . 3 1 2 . Terminals 3 | . 3 . . . Fabricators . | . . . . . Repair Stations . | . . . . . Recycling Units . | . . . . . Scanalyzers . | . . . . . Garrison Access . | . . . . . Total Hacks 16 | . 13 1 2 . Successful 10 | . 7 1 2 . Failed 6 | . 6 . . . Catastrophic 1 | . 1 . . . Database Lockouts . | . . . . . Manual 11 | . 10 . 1 . Terminals 13 | . 13 . . . Fabricators . | . . . . . Repair Stations . | . . . . . Recycling Units . | . . . . . Scanalyzers . | . . . . . Garrison Access . | . . . . . Terminal Hacks 9 | . 6 1 2 . Record 1 | . . . 1 . Robot Analysis 2 | . 2 . . . Prototype ID Bank 1 | . 1 . . . Open Door 1 | . . 1 . . Branch Access Points 1 | . 1 . . . Hauler Manifests 1 | . 1 . . . Zone Layout 1 | . 1 . . . EX-Prototype ID Bank 1 | . . . 1 . Fabricator Hacks . | . . . . . Repair Station Hacks . | . . . . . Recycling Unit Hacks . | . . . . . Scanalyzer . | . . . . . Garrison Access Hacks . | . . . . . Unauthorized Hacks 1 | . 1 . . . Terminals 1 | . 1 . . . Operators 1 | . 1 . . . Fabricators . | . . . . . Repair Stations . | . . . . . Recycling Units . | . . . . . Scanalyzers . | . . . . . Garrison Access . | . . . . . Data Cores Recovered . | . . . . . Used . | . . . . . Hacking Detections 3 | . 3 . . . Full Trace Events . | . . . . . Feedback Events . | . . . . . Feedback Blocked . | . . . . . Robot Schematics Acquired . | . . . . . Robots Built . | . . . . . Authchips . | . . . . . Time . | . . . . . Total Robot Build Rating . | . . . . . Part Schematics Acquired . | . . . . . Parts Built . | . . . . . Authchips . | . . . . . Time . | . . . . . Total Part Build Rating . | . . . . . Parts Repaired . | . . . . . Time . | . . . . . Parts Recycled . | . . . . . Recycled Matter . | . . . . . Retrieved Matter . | . . . . . Retrieved Components . | . . . . . Parts Scanalyzed . | . . . . . Part Schematics Acquired . | . . . . . Parts Damaged . | . . . . . Bothacking | -11 -10 -10 -10 -9 ------------ Run | Scr Mat Min Exi Min Used RIF Installer . | . . . . . Robots Hacked . | . . . . . Non-combat . | . . . . . Combat . | . . . . . Robot Hacks Applied . | . . . . . Relay Couplers Released . | . . . . . Fabnet Peak Effective % . | . . . . . Robots Rewired . | . . . . . Allies Hacked . | . . . . . Hacks Repelled . | . . . . . Allies | -11 -10 -10 -10 -9 -------- Run | Scr Mat Min Exi Min Total Allies 1 | . . 1 . . Largest Group 1 | . . 1 1 1 Highest-Rated Group 31 | . . 31 31 31 Highest-Rated Ally 31 | . . 31 31 31 Total Orders . | . . . . . Ally Attacks 26 | . . 12 . 14 Total Damage 378 | . . 211 . 167 Kills 7 | . . 4 . 3 Allies Corrupted . | . . . . . Allies Melted . | . . . . . Intel | -11 -10 -10 -10 -9 ------- Run | Scr Mat Min Exi Min Robot Analysis Total 2 | . 2 . . . Derelict Logs Recovered 1 | . . 1 . . Drone Launches . | . . . . . Drone Recoveries . | . . . . . Exploration | -11 -10 -10 -10 -9 ------------- Run | Scr Mat Min Exi Min Turns Passed 1938 | 29 488 749 522 150 Spaces Moved 870 | 41 275 292 218 44 Core 136 | 40 96 . . . Treads 734 | 1 179 292 218 44 Legs . | . . . . . Wheels . | . . . . . Hover . | . . . . . Flight . | . . . . . Fastest Speed 50 | 50 50 240 240 240 Average Speed 201 | 52 146 240 240 245 Slowest Speed 320 | 160 240 240 240 320 Overloaded Moves . | . . . . . Propulsion Burnouts . | . . . . . Robots Hopped . | . . . . . Cave-ins Triggered . | . . . . . Exploration Rate (%) 36 | 3 54 56 61 7 Regions Visited 4 Branch Regions 3 Pre-discovered Areas 1 | . . . 1 . Known Exits Taken 1 | . 1 . . . Unknown Exits Taken 3 | 1 . 1 1 . Scrap Searched 1 | . . 1 . . Spaces Dug . | . . . . . Terrain Destroyed . | . . . . . Melee . | . . . . . Projectile . | . . . . . AOE . | . . . . . Terrain Rammed . | . . . . . Walls Destroyed . | . . . . . Machines Disabled . | . . . . . Actions | -11 -10 -10 -10 -9 --------- Run | Scr Mat Min Exi Min Total 976 | 46 329 321 218 62 Wait 36 | . 20 16 . . Move 866 | 40 274 291 217 44 Hop . | . . . . . Pick Up 19 | 3 11 2 1 2 Fast Attach 5 | 3 1 1 . . Attach 5 | . 4 . . 1 Detach 2 | . 1 1 . . Swap 1 | . . . . 1 Drop 1 | . 1 . . . Fire 39 | . 17 10 . 12 Melee . | . . . . . Ram . | . . . . . Kick . | . . . . . Crush 2 | . . . . 2 Escape Stasis . | . . . . . Rewire . | . . . . . Trap . | . . . . . Miscellaneous . | . . . . . Route ------- -11/Scrapyard -10/Materials (discovered 2 exits: [*Mat] / *Min) -10/Mines (discovered 3 exits: [*Mat x2] / *Exi) -10/Exiles -9/Mines History --------- Turn | Location | Event 7 | -11/Scrapyard | Discovered new exit (range 16) 30 | -11/Scrapyard | Entered Materials 233 | -10/Materials | Identified exit to Mines 303 | -10/Materials | Build established: Mutant 427 | -10/Materials | Discovered new exit (range 12) 518 | -10/Materials | Entered Mines 519 | -10/Mines | Met a Derelict testing a Signal Generator 619 | -10/Mines | Learned location of 1 exit from Materials 918 | -10/Mines | Discovered new exit (range 6) 1142 | -10/Mines | Discovered new exit (range 7) 1170 | -10/Mines | Found the Drone Emporium 1181 | -10/Mines | Found Prototype Device 1181 | -10/Mines | Identified Thief Drone Bay 1255 | -10/Mines | Deemed a non-threat by the Exiles lab entrance 1257 | -10/Mines | Discovered new exit (range 5) 1267 | -10/Mines | Entered Exiles 1267 | -10/Exiles | Accompanied by 1 ally 1325 | -10/Exiles | Met 8R-AWN 1361 | -10/Exiles | Met EX-HEX 1433 | -10/Exiles | Met EX-BIN 1469 | -10/Exiles | Aligned with FarCom system 1471 | -10/Exiles | Given EX-Vault access code 1529 | -10/Exiles | Opened EX-Vault 1546 | -10/Exiles | Found Gui. Plasma Cannon 1597 | -10/Exiles | Warned to stay clear of 0b10 Research branches 1664 | -10/Exiles | Met EX-DEC 1681 | -10/Exiles | Learned location of Zion (-6) 1760 | -10/Exiles | Discovered new exit (range 14) 1789 | -10/Exiles | Left Exiles lab with Gui. Plasma Cannon 1789 | -10/Exiles | Entered Mines 1789 | -9/Mines | Accompanied by 1 ally 1799 | -9/Mines | Met a Derelict bent on vengeance 1858 | -9/Mines | Assembled infested the area 1863 | -9/Mines | Assisted by a Guerilla fighting off Assembled 1892 | -9/Mines | Core integrity fell below 50% 1932 | -9/Mines | Core integrity fell below 20% 1939 | -9/Mines | Destroyed by as-55465 with Assembled Maul Last Messages --------------- I've been tracking a group of Assembled to figure out where they're coming from, and they're closing on this area, come on!" 01876_ as-28267 sneak attacks. 01877_ R-06 Scavenger destroyed. 01877_ as-87891 destroyed. 01878_ S8-PWJ(g) destroyed. 01886_ as-57864 destroyed. 01886_ Switching to secondary target: as-49681. 01890_ as-49681 destroyed. 01891_ Acquired 10 matter. 01893_ as-28267 destroyed. 01915_ Med. Laser destroyed. 01915_ as-61079 destroyed. 01925_ Propulsion Shielding destroyed. 01927_ Slammed into as-99690. 01929_ Lgt. Treads destroyed. 01934_ K-01 Serf collects debris. 01936_ Med. Laser destroyed. 01936_ System corrupted by crushing effect (+2). 01936_ K-01 Serf collects debris. Map ----- +----------------------------------------------------+ | | | | | ???????????????????????????????? | | ???????????????????????????????? | | ???????????????????????????????? | | ???????????????????????????????? | | ???????????????????????????????? | | ???????????????????????????????? | | ???????????????????????????????? | | ???????????????????????????????? | | ???????????????????????????????? | | ???????????????????????????????? | | ???????????????????????????????? | | ???????????????????????????????? | | ???????????????????????????????? | | ???????????????????????????????? | | ???????????????????????????????? | | ???????????????????????????????? | | ???????????????????????????????? | | ???????????????????????????????? | | ???????????????????????????????? | | ???????????????????########????? | | ???????????????????#== #????? | | ???????????????#####%""" #????? | | ??????????????? %%k="""% ####?? | | ????????????????# ##k""" @aa #?? | | ???????????????????#%%a* ##%#?? | | ???????????????????###= #### #?? | | ?????????????????????#u #??# #?? | | ?????????????????????# #??# #?? | | ?????????????????????# #??#%#?? | | ????????????????????? #??#%#?? | | ????????????????????## #??#%#?? | | ?????????????????????# #??# #?? | | ?????????????????????# ??# #?? | | ?????????????????????####??# #?? | | ???????????????????????????# #?? | | ????????????????????????# ## #?? | | ????????????????????????# #?? | | ????????????????????????### #?? | | ??????????????????????????#=%#?? | | ??????????????????????????# %#?? | | ??????????????????????????#= #?? | | ??????????????????????????#% ?? | | ??????????????????????????# ?? | | ?????????????????????????? #? | | ??????????????????????????# #? | | ??????????????????????????# #? | | ?????????????????????????? ##? | | ?????????????????????????? #?? | +----------------------------------------------------+ Best States ------------- Heat Dissipation 25 Energy Generation 10 Energy Capacity 250 Matter Stores 300 Matter Capacity 300 Sight Range 16 Terrain Scan Density 10 Propulsion Shielding 33 Evasion (%) 50 Recoil Reduction 2 Item Schematics ----------------- None Robot Schematics ------------------ None Fabricated ------------ Nothing Alien Tech Used ----------------- None Achievements -------------- None Challenges ------------ None Game ------ Seed TerrabombAccelerationSuite Manual? 0 Play Time 00:10:50 Cumulative 172.3 hours Start 2022.09.08 @ 15:23:31 End 2022.09.08 @ 15:33:16 Sessions 1 Manual Loads 0 Difficulty Rogue Special Mode None Game No. 69 Rogue 69 Adventurer 0 Explorer 0 Win Type - Total 7 Types 3/1/1/1/1/0/0/0/0 Lore% 76 Gallery% 72 Achievement% 62 Wizard Run 0 Options --------- ASCII 0 Keyboard 1 Movement Numpad Keybinds 0 Fullscreen 2 Font 18/X11 Map View 76x50 Tactical HUD 1 Map Filters NONE Filters NONE Steam 1 RUN: 5666700d-1156-4857-a9d4-cbc54675e0af